bitfinex-derivatives/quotes_BTCF0:USTF0_20251215
["timestamp","ask_amount","ask_price","bid_price","bid_amount"]
[1765834878446,4.13e-06,86107.0,86106.0,0.1878149]
[1765834880551,4.13e-06,86107.0,86106.0,0.1888149]
[1765834881561,0.18454413,86107.0,86106.0,0.1888149]
[1765834881759,0.18454413,86107.0,86106.0,0.0891]
[1765834882160,0.18454413,86107.0,86106.0,0.001]
[1765834883266,0.18454413,86107.0,86098.0,1.50232295]
[1765834883267,0.18454,86099.0,86098.0,1.50232295]
[1765834884256,0.1961559,86099.0,86098.0,1.50232295]
[1765834887050,0.1961559,86099.0,86098.0,0.00232295]
[1765834887562,0.24217947,86099.0,86098.0,1.50232295]
[1765834888066,0.1961559,86099.0,86098.0,1.50232295]
[1765834888267,0.1961559,86099.0,86098.0,0.00232295]
[1765834888469,0.196157,86091.0,86090.0,0.07197413]
[1765834888761,0.196157,86091.0,86090.0,1.64339413]
[1765834889162,0.2213745,86091.0,86090.0,1.64339413]
[1765834894271,0.2097575,86091.0,86090.0,1.64339413]
[1765834895572,0.0252175,86091.0,86090.0,1.64339413]
[1765834895762,0.0368345,86091.0,86090.0,1.64339413]
[1765834895962,0.1326845,86091.0,86090.0,1.64339413]
[1765834896165,0.2288145,86091.0,86090.0,1.64339413]
[1765834898474,0.0252175,86091.0,86090.0,1.64339413]
[1765834898975,0.1210675,86091.0,86090.0,1.64339413]
[1765834899477,0.2171975,86091.0,86090.0,1.64339413]
[1765834903872,0.0252175,86091.0,86090.0,1.64339413]
[1765834904066,0.2171975,86091.0,86090.0,1.64339413]
[1765834904478,0.72736,86094.0,86093.0,0.13184]
[1765834904673,0.02510536,86094.0,86093.0,0.1434567]
[1765834904873,0.25046595,86105.0,86104.0,0.13184]
[1765834905070,1.00293105,86105.0,86104.0,0.13184]
[1765834906068,1.00593105,86105.0,86104.0,0.06592]
[1765834906269,1.0054479,86105.0,86104.0,0.06592]
[1765834906470,1.0074479,86105.0,86104.0,0.06592]
[1765834906780,1.0074479,86105.0,86104.0,0.13113]
[1765834907274,1.00636176,86105.0,86104.0,0.13113]
[1765834908077,0.9610602,86105.0,86104.0,0.13113]
[1765834908268,1.00636176,86105.0,86104.0,0.13113]
[1765834908470,1.00650724,86105.0,86104.0,0.13113]
[1765834909472,1.0067428,86105.0,86104.0,0.13113]
[1765834909681,0.2594265,86095.0,86094.0,0.1283]
[1765834909977,0.2845316,86095.0,86094.0,0.1283]
[1765834910177,0.0809351,86095.0,86094.0,0.1283]
[1765834910377,0.2729151,86095.0,86094.0,0.1283]
[1765834910969,0.0809351,86095.0,86094.0,0.1283]
[1765834911178,0.2739151,86095.0,86094.0,0.1283]
[1765834911975,0.2855315,86095.0,86094.0,0.1283]
[1765834912576,0.2865315,86095.0,86094.0,0.1283]
[1765834913779,0.2749151,86095.0,86094.0,0.1283]
[1765834914083,0.0829351,86095.0,86094.0,0.1283]
[1765834914482,0.0271051,86095.0,86094.0,0.1283]
[1765834917981,0.0261051,86095.0,86094.0,0.1283]
[1765834918177,0.0271051,86095.0,86094.0,0.1283]
[1765834920488,0.1787851,86095.0,86094.0,0.1283]
[1765834920687,0.0829351,86095.0,86094.0,0.1283]
[1765834921793,0.2749151,86095.0,86094.0,0.1283]
[1765834922187,0.0829351,86095.0,86094.0,0.1283]
[1765834922880,0.1688051,86095.0,86094.0,0.1283]
[1765834923488,0.2574451,86095.0,86094.0,0.1283]
[1765834924588,4.13e-06,86107.0,86106.0,0.0116149]
[1765834924782,4.13e-06,86107.0,86105.0,0.0116151]
[1765834924983,0.02503498,86106.0,86105.0,0.1292951]
[1765834925593,0.02503498,86106.0,86105.0,0.11768]
[1765834926681,0.02803498,86106.0,86105.0,0.11768]
[1765834926987,4.13e-06,86107.0,86106.0,0.0116149]
[1765834927686,0.20260143,86115.0,86114.0,0.0683239]
[1765834927992,0.05151,86120.0,86119.0,0.0683232]
[1765834928183,0.0631224,86125.0,86124.0,0.06691]
[1765834928996,0.22602,86125.0,86124.0,0.06691]
[1765834929697,0.17451,86117.0,86116.0,0.06646424]
[1765834929893,0.17451,86117.0,86116.0,0.00017424]
[1765834931395,0.22100406,86117.0,86116.0,0.00017424]
[1765834931694,0.22602,86100.0,86099.0,0.06504]
[1765834937513,0.17451,86092.0,86091.0,0.00017424]
[1765834938109,0.17451,86092.0,86091.0,0.06421424]
[1765834938709,0.17451,86092.0,86091.0,0.06521424]
[1765834939617,0.22071194,86105.0,86104.0,0.06313]
[1765834939916,0.17451,86105.0,86104.0,0.06313]
[1765834941012,0.1871251,86105.0,86104.0,0.06313]
[1765834941212,0.21301453,86105.0,86104.0,0.06313]
[1765834941408,0.002,86105.0,86104.0,0.06313]
[1765834942817,0.17651,86105.0,86104.0,0.06313]
[1765834943614,0.1881251,86105.0,86104.0,0.06313]
[1765834943814,0.17651,86105.0,86104.0,0.06313]
[1765834946416,0.17451,86080.0,86079.0,1.07e-06]
[1765834946620,0.17451,86059.0,86049.0,0.10407643]
[1765834946817,0.17451,86059.0,86037.0,0.14570701]
[1765834946818,0.17451,86059.0,86058.0,0.0007362]
[1765834947506,0.17463436,86059.0,86058.0,0.0007362]
[1765834947819,0.16951,86051.0,86050.0,0.00017424]
[1765834948019,0.1861334,86044.0,86043.0,0.18065]
[1765834948322,0.1851334,86044.0,86043.0,0.09075]
[1765834949009,0.1831334,86044.0,86043.0,0.09075]
[1765834949406,0.1831334,86044.0,86043.0,0.18065]
[1765834950008,0.0116233,86044.0,86043.0,0.002]
[1765834950210,0.1861333,86044.0,86043.0,0.002]
[1765834951025,0.222544,86039.0,86038.0,1.5]
[1765834951215,0.2226269,86039.0,86038.0,1.5]
[1765834951619,0.0859529,86039.0,86038.0,1.5]
[1765834952122,8.29e-05,86039.0,86038.0,1.5]
[1765834952325,0.1239329,86039.0,86038.0,1.5]
[1765834953321,8.29e-05,86039.0,86038.0,1.501]
[1765834953623,8.29e-05,86039.0,86038.0,1.5126241]
[1765834957623,8.29e-05,86039.0,86038.0,2.2404641]
[1765834958718,0.00017434,86047.0,86046.0,0.257223]
[1765834959625,0.00024357,86047.0,86046.0,0.257223]
[1765834960617,0.00224357,86047.0,86046.0,0.257223]
[1765834961016,0.00224357,86047.0,86046.0,0.258223]
[1765834961221,0.00124357,86047.0,86046.0,0.258223]
[1765834961817,0.00124357,86047.0,86046.0,0.2466]
[1765834962724,0.00024357,86047.0,86046.0,0.2466]
[1765834962921,0.00124357,86047.0,86046.0,0.2466]
[1765834963125,0.00124357,86047.0,86046.0,0.2456]
[1765834963323,0.24799357,86047.0,86046.0,0.2466]
[1765834963524,0.24899357,86047.0,86046.0,0.2466]
[1765834963922,0.00124357,86047.0,86046.0,0.2466]
[1765834964317,0.12509357,86047.0,86046.0,0.2466]
[1765834964517,0.00124357,86047.0,86046.0,0.2466]
[1765834976336,0.03073212,86047.0,86046.0,0.2466]
[1765834977840,0.00124357,86047.0,86046.0,0.9742]
[1765834978428,0.00115227,86047.0,86046.0,0.97575178]
[1765834981645,0.0116214,86058.0,86057.0,0.0116213]
[1765834981834,0.02935858,86058.0,86057.0,0.2572213]
[1765834982035,0.04097998,86058.0,86057.0,0.2572213]
[1765834982546,0.28268998,86058.0,86057.0,0.25877308]
[1765834982744,0.04097998,86058.0,86057.0,0.25877308]
[1765834983130,0.04397998,86058.0,86057.0,0.25877308]
[1765834983540,0.03335858,86058.0,86057.0,0.25877308]
[1765834984138,0.03235858,86058.0,86057.0,0.25877308]
[1765834985046,0.03035858,86058.0,86057.0,0.25877308]
[1765834985548,0.02935858,86058.0,86057.0,0.25877308]
[1765834985740,0.03035858,86058.0,86057.0,0.25877308]
[1765834985948,0.26698858,86058.0,86057.0,0.25877308]
[1765834988048,0.03035858,86058.0,86057.0,0.25877308]
[1765834988541,0.00017434,86066.0,86065.0,0.3181405]
[1765834988947,0.02923078,86066.0,86065.0,0.3181405]
[1765834989149,0.02923078,86066.0,86065.0,0.31969228]
[1765834989741,0.03023078,86066.0,86065.0,0.31969228]
[1765834991137,0.02923078,86066.0,86065.0,0.31969228]
[1765834993344,0.02923078,86066.0,86065.0,0.30807178]
[1765834993545,0.26586078,86066.0,86065.0,0.00155178]
[1765834993950,0.30563,86058.0,86057.0,0.12052434]
[1765834994248,0.33468644,86058.0,86057.0,0.12052434]
[1765834994450,0.34630784,86058.0,86057.0,0.00017434]
[1765834995240,0.34630784,86058.0,86057.0,0.23805434]
[1765834995741,0.34930784,86058.0,86057.0,0.23805434]
[1765834995948,0.35130784,86058.0,86057.0,0.23805434]
[1765834996156,0.33868644,86058.0,86057.0,0.23805434]
[1765834996449,0.004,86058.0,86057.0,0.23805434]
[1765834996749,0.003,86058.0,86057.0,0.23805434]
[1765834997453,0.00017434,86066.0,86065.0,0.3061]
[1765834997645,0.02904316,86066.0,86065.0,0.3061]
[1765834998845,0.02904316,86066.0,86065.0,0.3177205]
[1765835000654,0.26567316,86066.0,86065.0,0.23788]
[1765835002955,0.02904316,86066.0,86065.0,0.3061]
[1765835003453,0.26567316,86066.0,86065.0,0.23788]
[1765835004868,0.26567316,86066.0,86065.0,0.2495005]
[1765835006161,0.14781316,86066.0,86065.0,0.2495005]
[1765835007058,3.16e-06,86066.0,86065.0,0.30481482]
[1765835007259,0.2482484,86080.0,86079.0,0.23788]
[1765835007655,0.23663,86071.0,86070.0,0.23788]
[1765835007852,0.23663,86071.0,86070.0,0.2494998]
[1765835010460,0.23763,86071.0,86070.0,0.2494998]
[1765835011465,0.001,86071.0,86070.0,0.2494998]
[1765835011964,0.2546593,86074.0,86073.0,0.2510794]
[1765835013872,0.24304,86074.0,86073.0,0.2510794]
[1765835014073,0.2556593,86074.0,86073.0,0.2510794]
[1765835014277,0.24404,86074.0,86073.0,0.2510794]
[1765835014873,0.24404,86074.0,86073.0,0.26356497]
[1765835015474,0.001,86074.0,86073.0,0.26356497]
[1765835015976,0.001,86074.0,86073.0,0.25194557]
[1765835015977,0.24076,86074.0,86073.0,0.25194557]
[1765835016174,0.24076,86074.0,86073.0,0.01248557]
[1765835016375,0.30967,86070.0,86069.0,0.2426098]
[1765835016576,0.3212898,86070.0,86069.0,0.23099]
[1765835017177,0.23976,86061.0,86060.0,0.24311852]
[1765835017378,0.23976,86061.0,86060.0,0.23099]
[1765835017580,0.23876,86061.0,86060.0,0.23099]
[1765835017785,0.23876,86061.0,86060.0,0.11101]
[1765835017973,0.23876,86061.0,86060.0,0.23099]
[1765835018481,0.23876,86061.0,86060.0,0.23199]
[1765835019186,0.26716196,86061.0,86060.0,0.23099]
[1765835019485,0.26816196,86061.0,86060.0,0.23099]
[1765835020484,0.27016196,86061.0,86060.0,0.23099]
[1765835021379,0.26916196,86061.0,86060.0,0.23099]
[1765835021581,0.27016196,86061.0,86060.0,0.23099]
[1765835022185,0.26916196,86061.0,86060.0,0.23099]
[1765835022377,0.27016196,86061.0,86060.0,0.23099]
[1765835023183,0.26816196,86061.0,86060.0,0.23099]
[1765835023478,0.27016196,86061.0,86060.0,0.23099]
[1765835023673,0.26916196,86061.0,86060.0,0.23099]
[1765835023882,0.26816196,86061.0,86060.0,0.23099]
[1765835028890,0.14665196,86061.0,86060.0,0.23099]
[1765835029088,0.26816196,86061.0,86060.0,0.23099]
[1765835030290,0.26716196,86061.0,86060.0,0.23099]
[1765835030690,0.23976,86058.0,86057.0,0.00017434]
[1765835030881,0.26816196,86058.0,86057.0,0.00017434]
[1765835031192,0.26816938,86058.0,86057.0,0.00017434]
[1765835033186,0.26816938,86058.0,86057.0,0.23116434]
[1765835033385,0.26816938,86058.0,86057.0,0.23216434]
[1765835033679,0.27116938,86058.0,86057.0,0.23216434]
[1765835034084,0.27216938,86058.0,86057.0,0.23116434]
[1765835035494,0.26916938,86058.0,86057.0,0.23116434]
[1765835035690,0.27116938,86058.0,86057.0,0.23116434]
[1765835036896,0.28279078,86058.0,86057.0,0.23116434]
[1765835040086,0.27116938,86058.0,86057.0,0.23116434]
[1765835040289,0.03140938,86058.0,86057.0,0.23116434]
[1765835040703,0.27116938,86058.0,86057.0,0.23116434]
[1765835042395,0.03140938,86058.0,86057.0,0.23116434]
[1765835042591,0.14878938,86058.0,86057.0,0.23116434]
[1765835043102,0.26193938,86058.0,86057.0,0.23216434]
[1765835043601,0.14578938,86058.0,86057.0,0.23216434]
[1765835043800,0.26193938,86058.0,86057.0,0.23216434]
[1765835044201,0.14578938,86058.0,86057.0,0.23216434]
[1765835044503,0.02840938,86058.0,86057.0,0.23216434]
[1765835045703,0.14578938,86058.0,86057.0,0.23216434]
[1765835046209,0.26193938,86058.0,86057.0,0.23216434]
[1765835048704,0.23353,86058.0,86057.0,0.23216434]
[1765835053803,0.2451508,86063.0,86062.0,0.23345]
[1765835054009,0.27388622,86063.0,86062.0,0.2450709]
[1765835055306,0.27488622,86063.0,86062.0,0.2450709]
[1765835057002,0.02973542,86063.0,86062.0,0.2450709]
[1765835057202,0.001,86063.0,86062.0,0.2450709]
[1765835057802,0.44777937,86072.0,86071.0,0.23345]
[1765835058102,0.27373113,86072.0,86071.0,0.23345]
[1765835058912,0.02858163,86072.0,86071.0,0.23345]
[1765835059102,0.001,86072.0,86071.0,0.23345]
[1765835059409,0.11838,86072.0,86071.0,0.23345]
[1765835059603,0.23453,86072.0,86071.0,0.23345]
[1765835060213,0.41341245,86091.0,86071.0,0.23345]
[1765835060214,0.06471829,86098.0,86097.0,0.23345]
[1765835060416,0.08326335,86107.0,86090.0,0.0778471]
[1765835060417,0.30754014,86107.0,86105.0,0.23345]
[1765835060714,0.23353,86107.0,86106.0,0.2450649]
[1765835061816,0.23453,86107.0,86106.0,0.23345]
[1765835063216,0.23453,86107.0,86105.0,0.12938634]
[1765835063217,0.3125749,86106.0,86105.0,0.12938634]
[1765835063406,0.30096,86106.0,86105.0,0.24550634]
[1765835064108,0.23353,86106.0,86105.0,0.24550634]
[1765835064414,0.23453,86106.0,86105.0,0.24550634]
[1765835065506,0.001,86106.0,86105.0,0.24550634]
[1765835066107,0.23453,86106.0,86105.0,0.24550634]
[1765835070311,0.23353,86106.0,86105.0,0.24650634]
[1765835070514,0.00017422,86115.0,86114.0,0.23345]
[1765835070820,0.10984422,86115.0,86114.0,0.23345]
[1765835071118,0.22146422,86115.0,86114.0,0.23345]
[1765835071823,0.22146422,86115.0,86114.0,0.2450639]
[1765835072022,0.22246422,86115.0,86114.0,0.2450639]
[1765835073520,0.22146422,86115.0,86114.0,0.2450639]
[1765835073819,0.22146422,86115.0,86114.0,0.2460639]
[1765835076007,0.28681422,86115.0,86114.0,0.2460639]
[1765835077416,0.28681422,86115.0,86114.0,0.001]
[1765835080520,0.28681422,86115.0,86114.0,0.11032]
[1765835081018,0.28681422,86115.0,86081.0,0.05445566]
[1765835081019,0.2340882,86082.0,86081.0,0.05445566]
[1765835081220,0.0769672,86090.0,86058.0,0.00232403]
[1765835081221,0.2340913,86059.0,86058.0,0.00232403]
[1765835081716,0.2340929,86047.0,86046.0,0.22612]
[1765835081904,0.06535,86050.0,86038.0,1.51195414]
[1765835081905,0.22247,86039.0,86038.0,1.51195414]
[1765835082106,0.2994425,86050.0,86049.0,0.22612]
[1765835082303,0.29955952,86050.0,86049.0,0.22612]
[1765835084222,0.29355952,86050.0,86049.0,0.22612]
[1765835084424,0.29455952,86050.0,86049.0,0.22612]
[1765835084720,0.29555952,86050.0,86049.0,0.22612]
[1765835086114,0.29455952,86050.0,86049.0,0.22612]
[1765835092422,0.23520952,86050.0,86049.0,0.2377426]
[1765835092628,0.00111702,86050.0,86049.0,0.2377426]
[1765835093923,0.01373952,86050.0,86049.0,0.2377426]
[1765835094225,0.00211702,86050.0,86049.0,0.2377426]
[1765835097625,0.00211702,86050.0,86049.0,0.9657026]
[1765835098223,0.11307702,86050.0,86049.0,0.9657026]
[1765835098430,0.22458702,86050.0,86049.0,0.9657026]
[1765835098922,0.11307702,86050.0,86049.0,0.9657026]
[1765835100526,0.12469952,86050.0,86049.0,0.9657026]
[1765835100829,0.11307702,86050.0,86049.0,0.9657026]
[1765835101128,0.00211702,86050.0,86049.0,0.9657026]
[1765835101720,0.23426572,86058.0,86057.0,0.2377415]
[1765835101924,0.31069572,86058.0,86057.0,0.22612]
[1765835102434,0.29907432,86058.0,86057.0,0.22612]
[1765835103332,0.30207432,86058.0,86057.0,0.22612]
[1765835104632,0.30207432,86058.0,86057.0,0.95396]
[1765835105729,0.29907432,86058.0,86057.0,0.95396]
[1765835105931,0.30107432,86058.0,86057.0,0.95396]
[1765835106316,0.29907432,86058.0,86057.0,0.95396]
[1765835106518,0.30107432,86058.0,86057.0,0.95396]
[1765835108420,0.31418,86050.0,86049.0,0.12169432]
[1765835108734,0.31418,86050.0,86049.0,0.00017432]
[1765835109733,0.31418,86050.0,86049.0,0.24377432]
[1765835110235,0.31718,86050.0,86049.0,0.24377432]
[1765835111332,0.31818,86050.0,86049.0,0.24277432]
[1765835111524,0.31718,86050.0,86049.0,0.24277432]
[1765835111921,0.002,86050.0,86049.0,0.24277432]
[1765835113124,0.32597582,86058.0,86057.0,0.2542215]
[1765835115327,0.32697582,86058.0,86057.0,0.2542215]
[1765835115727,0.31535432,86058.0,86057.0,0.2542215]
[1765835117627,0.23892432,86058.0,86057.0,0.2542215]
[1765835118835,0.23792432,86058.0,86057.0,0.2542215]
[1765835120735,0.23792432,86058.0,86057.0,0.2552215]
[1765835123231,0.11666432,86058.0,86057.0,0.2552215]
[1765835123637,0.23792432,86058.0,86057.0,0.2552215]
[1765835125430,0.00017432,86058.0,86057.0,0.2552215]
[1765835125849,0.00017432,86058.0,86057.0,0.9829815]
[1765835126047,0.23775,86075.0,86074.0,0.2542193]
[1765835126246,0.31418,86080.0,86079.0,0.2426]
[1765835126536,0.34118329,86080.0,86079.0,0.2426]
[1765835127940,0.34718329,86080.0,86079.0,0.2426]
[1765835128445,0.26675329,86080.0,86079.0,0.2426]
[1765835128634,0.26775329,86080.0,86079.0,0.2426]
[1765835129345,0.26575329,86080.0,86079.0,0.2426]
[1765835130635,0.02800329,86080.0,86079.0,0.2426]
[1765835130843,0.00017432,86088.0,86087.0,0.23549]
[1765835131037,0.02714993,86088.0,86087.0,0.2471075]
[1765835132240,0.02714993,86088.0,86087.0,1.7471075]
[1765835133340,0.02714993,86088.0,86087.0,1.7481075]
[1765835133341,0.00017432,86088.0,86087.0,1.7481075]
[1765835133740,0.30991432,86088.0,86087.0,2.4757075]
[1765835133949,0.33670258,86088.0,86087.0,2.4757075]
[1765835134249,0.33670258,86088.0,86087.0,2.4767075]
[1765835135147,0.33670258,86088.0,86087.0,2.4757075]
[1765835135346,0.30991432,86088.0,86087.0,2.4757075]
[1765835135742,0.30991432,86088.0,86087.0,2.4747075]
[1765835138245,0.33668969,86088.0,86087.0,2.4747075]
[1765835138646,0.30991432,86088.0,86087.0,2.4747075]
[1765835139247,0.3366924,86088.0,86087.0,2.4747075]
[1765835143551,0.2678124,86088.0,86087.0,2.4747075]
[1765835144057,0.0269524,86088.0,86087.0,2.4747075]
[1765835144359,0.1426624,86088.0,86087.0,2.4747075]
[1765835144559,0.2634424,86088.0,86087.0,2.4747075]
[1765835144860,0.2634424,86088.0,86087.0,2.4757075]
[1765835145155,0.0269524,86088.0,86087.0,2.4767075]
[1765835145357,0.0014915,86088.0,86087.0,2.4767075]
[1765835145564,0.00232295,86098.0,86097.0,0.2456261]
[1765835145862,0.00232295,86098.0,86097.0,0.9729061]
[1765835146648,0.06953422,86106.0,86105.0,0.2456251]
[1765835146649,0.00017422,86106.0,86105.0,0.2456251]
[1765835146854,0.00017422,86106.0,86105.0,1.0176551]
[1765835147055,0.43900792,86120.0,86119.0,0.2456232]
[1765835147259,0.23649,86120.0,86119.0,0.9729432]
[1765835149261,0.23849,86120.0,86119.0,0.9729432]
[1765835149564,0.23849,86120.0,86119.0,0.97702972]
[1765835150066,0.23749,86120.0,86119.0,0.97702972]
[1765835152268,0.23749,86120.0,86119.0,0.97694972]
[1765835152867,0.23749,86120.0,86119.0,0.24970972]
[1765835153070,0.30637,86120.0,86119.0,0.96529652]
[1765835153766,0.001,86120.0,86119.0,0.96529652]
[1765835154565,0.00017422,86128.0,86127.0,0.2456221]
[1765835154871,0.23666422,86128.0,86127.0,0.2456221]
[1765835155666,0.00017422,86128.0,86127.0,0.2456221]
[1765835155868,0.11588422,86128.0,86127.0,0.2456221]
[1765835156065,0.11688422,86128.0,86127.0,0.2456221]
[1765835156278,0.23766422,86128.0,86127.0,0.24970862]
[1765835157063,0.23766422,86128.0,86127.0,0.97682862]
[1765835157967,0.00232187,86138.0,86137.0,0.2456208]
[1765835158364,0.00232187,86138.0,86136.0,0.0585]
[1765835158365,0.2480987,86153.0,86152.0,0.23401]
[1765835158568,0.23649,86153.0,86152.0,0.96121]
[1765835159864,0.23949,86153.0,86152.0,0.96121]
[1765835161367,0.23649,86145.0,86144.0,0.11491412]
[1765835161670,0.2480997,86145.0,86144.0,0.00017412]
[1765835161880,0.30537,86128.0,86127.0,0.24970852]
[1765835162076,0.30537,86128.0,86127.0,0.23809652]
[1765835162271,0.30537,86128.0,86127.0,0.00408652]
[1765835162469,0.30537,86128.0,86127.0,0.22672652]
[1765835162673,0.30537,86128.0,86127.0,0.00408652]
[1765835163175,0.30537,86128.0,86127.0,0.00608652]
[1765835163480,0.30537,86128.0,86127.0,0.11270652]
[1765835163672,0.30837,86128.0,86127.0,0.11270652]
[1765835164172,0.30837,86128.0,86127.0,0.22672652]
[1765835164877,0.30837,86128.0,86127.0,0.00408652]
[1765835165078,0.30737,86128.0,86127.0,0.00408652]
[1765835165778,0.30637,86128.0,86127.0,0.00408652]
[1765835165975,0.30637,86128.0,86127.0,0.11270652]
[1765835166472,0.30637,86128.0,86127.0,0.22672652]
[1765835174483,0.23749,86128.0,86127.0,0.22672652]
[1765835174870,0.249102,86128.0,86127.0,0.22672652]
[1765835175778,0.248102,86128.0,86127.0,0.22672652]
[1765835176085,0.23649,86128.0,86127.0,0.22672652]
[1765835176886,0.12032,86130.0,86129.0,0.22264]
[1765835177077,0.30071,86135.0,86134.0,0.2342512]
[1765835177485,0.23183,86135.0,86134.0,0.2342512]
[1765835177875,0.12032,86135.0,86134.0,0.2342512]
[1765835178184,0.00017412,86136.0,86135.0,0.22264]
[1765835179287,0.00217412,86136.0,86135.0,0.22264]
[1765835182880,0.00217412,86136.0,86135.0,0.27859007]
[1765835183089,0.43434792,86150.0,86149.0,0.22264]
[1765835183290,0.243439,86150.0,86149.0,0.2342491]
[1765835183877,0.23183,86150.0,86149.0,0.2342491]
[1765835184282,0.23583,86150.0,86149.0,0.2342491]
[1765835184585,0.27399402,86150.0,86149.0,0.2342491]
[1765835185184,0.247439,86150.0,86149.0,0.2342491]
[1765835185389,0.23583,86150.0,86149.0,0.2342491]
[1765835186184,0.12432,86150.0,86149.0,0.2342491]
[1765835186384,0.23583,86150.0,86149.0,0.2342491]
[1765835186587,0.247439,86150.0,86149.0,0.2342491]
[1765835187882,0.23583,86150.0,86149.0,0.2342491]
[1765835188485,0.23583,86150.0,86149.0,0.1202291]
[1765835188681,0.23583,86150.0,86149.0,0.2342491]
[1765835188885,0.23583,86150.0,86149.0,0.22264]
[1765835189994,0.23583,86150.0,86149.0,0.22672652]
[1765835190992,0.23583,86150.0,86149.0,0.00408652]
[1765835191997,0.23583,86150.0,86149.0,0.22591652]
[1765835198105,0.3009,86150.0,86149.0,0.22591652]
[1765835199112,0.23583,86150.0,86149.0,0.22591652]
[1765835199294,0.004,86150.0,86149.0,0.22591652]
[1765835200999,0.11078,86156.0,86155.0,0.2313683]
[1765835201200,0.00011427,86158.0,86150.0,0.011609]
[1765835201201,0.00011427,86158.0,86157.0,0.2313681]
[1765835201601,0.00011427,86158.0,86157.0,0.24143697]
[1765835203505,0.00011427,86158.0,86157.0,0.24552349]
[1765835203706,0.00111427,86158.0,86157.0,0.24552349]
[1765835204010,0.28061,86170.0,86169.0,0.2313664]
[1765835204204,0.15585806,86172.0,86171.0,0.21976]
[1765835204396,0.04507806,86172.0,86171.0,0.21976]
[1765835205000,0.15585806,86172.0,86171.0,0.21976]
[1765835205811,0.32568806,86172.0,86171.0,0.21976]
[1765835206205,0.35216975,86172.0,86171.0,0.21976]
[1765835206410,0.35216975,86172.0,86171.0,0.11319]
[1765835206708,0.35516975,86172.0,86171.0,0.11319]
[1765835206918,0.35516975,86172.0,86171.0,0.21976]
[1765835207209,0.35516975,86172.0,86171.0,0.11319]
[1765835207509,0.2271471,86164.0,86163.0,0.21993412]
[1765835208114,0.2271471,86164.0,86163.0,0.00017412]
[1765835208519,0.2271471,86164.0,86163.0,0.11336412]
[1765835208913,0.2271471,86164.0,86163.0,0.21993412]
[1765835209220,0.21754,86164.0,86163.0,0.21993412]
[1765835210323,0.11278,86164.0,86163.0,0.21993412]
[1765835210504,0.2291471,86164.0,86163.0,0.22402064]
[1765835214507,0.2556572,86164.0,86163.0,0.00426064]
[1765835215618,0.2291471,86164.0,86163.0,0.23562794]
[1765835215826,0.2291471,86164.0,86163.0,0.11745064]
[1765835216014,0.2291471,86164.0,86163.0,0.22402064]
[1765835216322,0.25565767,86164.0,86163.0,0.00426064]
[1765835217324,0.21754,86164.0,86163.0,0.22402064]
[1765835219016,0.11278,86164.0,86163.0,0.22402064]
[1765835219217,0.002,86164.0,86163.0,0.22402064]
[1765835221523,0.21754,86164.0,86163.0,0.22402064]
[1765835224223,0.21754,86164.0,86163.0,0.00426064]
[1765835224422,0.2202997,86145.0,86144.0,0.2295697]
[1765835224622,0.2202997,86145.0,86144.0,0.21796]
[1765835225425,0.2202997,86145.0,86144.0,0.22905372]
[1765835225620,0.2202997,86145.0,86144.0,0.23005372]
[1765835226628,0.2202997,86145.0,86144.0,0.22905372]
[1765835226829,0.2202997,86145.0,86144.0,0.22805372]
[1765835238048,0.2821897,86145.0,86144.0,0.22805372]
[1765835240049,0.2821897,86145.0,86144.0,0.01009372]
[1765835240237,0.2203002,86141.0,86140.0,0.10922443]
[1765835241448,0.2203002,86141.0,86140.0,0.11022443]
[1765835241648,0.2203002,86141.0,86140.0,0.12099168]
[1765835242449,0.2203002,86141.0,86140.0,0.22982168]
[1765835246854,0.2213002,86141.0,86140.0,0.22882168]
[1765835248955,0.2213002,86141.0,86140.0,0.01086168]
[1765835250246,0.2213002,86141.0,86140.0,0.11999168]
[1765835250446,0.2213002,86141.0,86140.0,0.22882168]
[1765835252543,0.2213002,86141.0,86140.0,0.01086168]
[1765835252748,0.24772705,86141.0,86140.0,0.01086168]
[1765835252949,0.24772705,86141.0,86140.0,0.11314168]
[1765835253650,0.24772705,86141.0,86140.0,0.1151194]
[1765835257654,0.2213002,86141.0,86140.0,0.1151194]
[1765835259651,0.2213002,86141.0,86140.0,0.0128394]
[1765835259851,0.2213002,86141.0,86140.0,0.1151194]
[1765835260048,0.2213002,86141.0,86140.0,0.0128394]
[1765835260648,0.2213002,86141.0,86140.0,0.1151194]
[1765835261049,0.2213002,86141.0,86140.0,0.0128394]
[1765835261856,0.2213002,86141.0,86140.0,0.1151194]
[1765835262758,0.2480597,86141.0,86140.0,0.1151194]
[1765835263547,0.2480597,86141.0,86140.0,0.0128394]
[1765835264150,0.2480597,86141.0,86140.0,0.2215094]
[1765835266058,0.2480597,86141.0,86140.0,0.0128394]
[1765835266456,0.2470597,86141.0,86140.0,0.0128394]
[1765835266658,0.2480597,86141.0,86140.0,0.0128394]
[1765835267051,0.2470597,86141.0,86140.0,0.2215094]
[1765835267252,0.2480597,86141.0,86140.0,0.2215094]
[1765835269960,0.2480597,86141.0,86140.0,0.2331198]
[1765835270659,0.2364495,86141.0,86140.0,0.2331198]
[1765835270965,0.001,86141.0,86140.0,0.2690898]
[1765835271159,0.001,86141.0,86140.0,0.2331198]
[1765835271360,0.2023,86141.0,86140.0,0.2331198]
[1765835272162,0.2023,86141.0,86140.0,0.2341198]
[1765835272361,0.2013,86141.0,86140.0,0.2341198]
[1765835272559,0.26054,86152.0,86151.0,0.20867]
[1765835272865,0.20226314,86161.0,86152.0,0.2202787]
[1765835273067,0.0116077,86160.0,86152.0,0.2202787]
[1765835273757,0.0116077,86160.0,86152.0,0.22225642]
[1765835274969,0.20226314,86162.0,86152.0,0.22225642]
[1765835275163,0.20147412,86153.0,86152.0,0.22225642]
[1765835275376,0.00017412,86153.0,86152.0,0.22225642]
[1765835281170,0.20147412,86153.0,86152.0,0.22225642]
[1765835286563,0.21308272,86153.0,86152.0,0.21064772]
[1765835286879,0.21308272,86153.0,86152.0,0.00197772]
[1765835288078,0.2126802,86141.0,86140.0,0.21019168]
[1765835289466,0.2136802,86141.0,86140.0,0.21119168]
[1765835290269,0.2136802,86141.0,86140.0,0.21019168]
[1765835290776,0.2136802,86141.0,86140.0,0.01086168]
[1765835291383,0.2136802,86141.0,86140.0,0.21019168]
[1765835292884,0.2136802,86141.0,86140.0,0.22180208]
[1765835295782,0.2126802,86141.0,86140.0,0.22180208]
[1765835297389,0.2126802,86141.0,86140.0,0.21019168]
[1765835297773,0.2126802,86141.0,86140.0,9.443e-05]
[1765835298084,0.2126808,86137.0,86131.0,0.08282672]
[1765835298384,0.2126808,86137.0,86127.0,0.08282672]
[1765835298575,0.2126808,86137.0,86126.0,0.09443892]